bitfinex/quotes_ETHUSD_20240614
["timestamp","ask_amount","ask_price","bid_price","bid_amount"]
[1718392970130,2.95779,3380.9,3380.5,2.95811]
[1718392970450,2.95779,3380.9,3380.4,2.95821]
[1718392970666,2.95779,3380.9,3380.5,2.95808]
[1718392972916,0.04099748,3380.8,3380.5,2.95808]
[1718392974946,0.04099748,3380.8,3380.7,2.95796]
[1718392975239,7.31,3381.3,3380.9,2.95776]
[1718392975240,10.26744,3381.3,3380.9,2.95776]
[1718392975438,7.31,3381.3,3380.9,2.95776]
[1718392976924,2.95753,3381.2,3380.9,2.95776]
[1718392977326,10.26746,3381.3,3380.9,2.95776]
[1718392977559,7.31,3381.3,3380.5,2.3507]
[1718392977867,7.31,3381.3,3380.6,0.29422243]
[1718392978223,7.31,3381.3,3381.2,2.95752]
[1718392978473,15.4471,3381.7,3381.2,2.95752]
[1718392978653,12.49,3381.7,3381.5,2.95724]
[1718392979825,12.49,3381.7,3381.5,5.91443]
[1718392980053,12.49,3381.7,3381.5,2.95719]
[1718392980252,12.49,3381.7,3381.6,2.95718]
[1718392981327,12.49,3381.7,3381.6,9.758716]
[1718392981680,7.31,3381.8,3381.7,11.34177]
[1718392982123,7.31,3381.8,3381.7,8.38468]
[1718392982327,7.31,3381.8,3381.7,2.95709]
[1718392984147,7.31,3381.8,3381.7,5.91418]
[1718392984426,7.31,3381.8,3381.7,6.801328]
[1718392985873,7.31,3381.8,3381.7,9.758418]
[1718392987269,5.3952,3382.8,3382.3,2.95654]
[1718392987564,5.3952,3382.8,3381.7,3.290348]
[1718392987565,5.3952,3382.8,3381.9,2.95687]
[1718392987764,5.3952,3382.8,3382.3,2.95651]
[1718392987970,2.95623,3382.7,3382.3,2.95651]
[1718392988128,2.99818515,3382.7,3382.3,2.95651]
[1718392988571,2.95631,3382.6,3382.2,2.95663]
[1718392988752,0.04106693,3382.5,3382.2,2.95663]
[1718392989746,0.04106693,3382.5,3382.3,2.95655]
[1718392989956,2.95623,3382.7,3382.3,2.95655]
[1718392990469,0.0411009,3382.6,3382.3,2.95655]
[1718392990684,0.0411009,3382.6,3382.5,2.95639]
[1718392990852,0.0411009,3382.6,3382.5,8.86917]
[1718392991049,2.95554,3383.5,3383.0,2.95588]
[1718392991253,2.9557,3383.3,3382.9,2.95602]
[1718392991558,0.03847007,3383.2,3382.9,2.95602]
[1718392991762,2.9557,3383.3,3383.0,2.95595]
[1718392991951,0.03750818,3383.2,3383.0,2.95595]
[1718392992149,2.95553,3383.5,3383.1,2.95584]
[1718392992359,0.03757609,3383.4,3383.2,2.95576]
[1718392992754,2.95545,3383.6,3383.2,2.95576]
[1718392993078,0.03780189,3383.5,3383.3,2.95566]
[1718392993941,2.95536,3383.7,3383.3,2.95566]
[1718392994145,0.03783584,3383.6,3383.3,2.95566]
[1718392996360,0.03783584,3383.6,3383.1,2.95586]
[1718392996601,2.95526,3383.8,3383.3,2.95562]
[1718392996796,0.03786978,3383.7,3383.4,2.9556]
[1718392996960,2.95526,3383.8,3383.4,2.9556]
[1718392997296,0.03786978,3383.7,3383.4,2.9556]
[1718392997699,2.95534,3383.7,3383.3,2.95567]
[1718392997903,2.95553,3383.5,3383.1,2.95585]
[1718392998199,2.95553,3383.5,3383.0,2.95595]
[1718392998200,2.99352151,3383.4,3383.0,2.95595]
[1718392998597,2.9557,3383.3,3383.0,2.95595]
[1718392998797,2.9557,3383.3,3382.9,2.95602]
[1718392998798,0.03870642,3383.2,3382.9,2.95602]
[1718392998993,2.9557,3383.3,3382.9,2.95602]
[1718392999206,0.0378336,3383.2,3382.9,2.95602]
[1718392999520,2.95563,3383.4,3383.0,2.95594]
[1718392999721,0.03779964,3383.1,3383.0,2.95594]
[1718393000021,0.0388215,3383.1,3383.0,2.95594]
[1718393000226,2.95563,3383.4,3383.1,2.95584]
[1718393000390,2.95553,3383.5,3383.1,2.95584]
[1718393001019,2.95561,3383.4,3383.1,2.95584]
[1718393001385,2.95561,3383.4,3383.0,2.95594]
[1718393003092,2.99353591,3383.3,3382.5,2.95635]
[1718393003422,2.95579,3383.2,3382.8,2.95606]
[1718393003609,2.95579,3383.2,3382.9,2.95604]
[1718393003809,0.03806003,3383.1,3382.9,2.95604]
[1718393004801,2.95571,3383.3,3382.9,2.95604]
[1718393005000,0.03809399,3383.2,3382.9,2.95604]
[1718393005325,2.95571,3383.3,3382.9,2.95604]
[1718393005535,0.03806003,3383.1,3382.9,2.95604]
[1718393005714,2.95571,3383.3,3382.9,2.95604]
[1718393005904,0.03802607,3383.0,3382.9,2.95604]
[1718393006105,2.95571,3383.3,3382.9,2.95604]
[1718393006728,0.03809399,3383.2,3382.9,2.95604]
[1718393007135,2.95571,3383.3,3382.9,2.95604]
[1718393007293,0.03758969,3383.1,3382.9,2.95604]
[1718393007500,2.95571,3383.3,3382.9,2.95604]
[1718393008005,0.03755339,3383.2,3382.9,2.95604]
[1718393008325,0.03755339,3383.2,3383.0,2.95595]
[1718393008554,2.95571,3383.3,3383.0,2.95595]
[1718393008748,0.03673911,3383.1,3383.0,2.95595]
[1718393009061,0.03754173,3383.1,3383.0,2.95595]
[1718393009347,2.95571,3383.3,3383.0,2.95595]
[1718393009533,0.03755887,3383.1,3383.0,2.95595]
[1718393009716,2.95561,3383.4,3383.0,2.95595]
[1718393009910,0.03760342,3383.1,3383.0,5.9119]
[1718393010114,2.95554,3383.5,3383.1,2.95583]
[1718393010351,2.95552,3383.5,3382.9,2.95597]
[1718393010545,2.95569,3383.3,3383.0,2.95595]
[1718393010921,2.95569,3383.3,3382.9,2.95602]
[1718393013417,2.95579,3383.2,3382.9,2.95602]
[1718393014241,2.95579,3383.2,3382.3,2.3592]
[1718393014242,2.95627,3382.7,3382.3,2.95656]
[1718393014445,2.95627,3382.7,3382.0,5.40731]
[1718393014620,2.95633,3382.6,3382.2,2.95658]
[1718393016653,2.95639,3382.5,3382.2,2.95658]
[1718393017232,2.95633,3382.6,3382.2,2.95658]
[1718393018053,0.03541921,3382.5,3382.3,2.95655]
[1718393018259,0.03541921,3382.5,3382.4,2.95648]
[1718393018725,2.95621,3382.7,3382.4,2.95648]
[1718393018925,0.03602135,3382.5,3382.3,2.95653]
[1718393019133,2.95621,3382.7,3382.3,2.95653]
[1718393019354,0.03521037,3382.4,3382.3,2.95653]
[1718393019537,2.95639,3382.5,3382.0,2.4505]
[1718393019724,2.99170037,3382.4,3382.1,2.95668]
[1718393019932,2.95662,3382.3,3381.9,2.95688]
[1718393020233,2.95662,3382.3,3381.6,2.95714]
[1718393020234,0.03514242,3382.2,3381.8,2.95698]
[1718393020443,2.99186242,3382.2,3381.8,2.95698]
[1718393020647,2.95672,3382.2,3381.8,2.95698]
[1718393020846,0.03590608,3382.1,3381.8,2.95698]
[1718393021054,0.03590608,3382.1,3382.0,5.26123]
[1718393021256,0.03590608,3382.1,3382.0,11.17489]
[1718393021471,2.95604,3382.9,3382.5,2.95632]
[1718393021673,2.95614,3382.8,3382.5,2.95632]
[1718393021877,2.95624,3382.7,3382.4,2.95647]
[1718393022180,0.03583767,3382.8,3382.5,2.95638]
[1718393022360,10.26593,3383.1,3382.5,5.91277]
[1718393022676,10.26593,3383.1,3382.0,2.3044]
[1718393022677,0.03614048,3383.0,3382.7,2.95621]
[1718393023187,0.03614048,3383.0,3382.7,2.9562]
[1718393023867,2.99210048,3383.0,3382.6,2.95628]
[1718393024042,2.95605,3382.9,3382.4,2.95647]
[1718393024248,2.95606,3382.9,3382.5,2.95639]
[1718393024486,0.03616564,3382.8,3382.5,2.95639]
[1718393026259,0.03616564,3382.8,3382.6,2.9563]
[1718393027548,0.03616564,3382.8,3382.5,2.95637]
[1718393028050,0.03616564,3382.8,3382.6,2.9563]
[1718393032705,0.03616564,3382.8,3382.4,2.95647]
[1718393032905,2.99235564,3382.8,3382.5,2.95639]
[1718393033113,2.95619,3382.8,3382.5,2.95639]
[1718393033312,0.03609055,3382.7,3382.5,2.95639]
[1718393033709,2.95619,3382.8,3382.5,2.95639]
[1718393033907,0.03605789,3382.6,3382.5,2.95639]
[1718393034122,2.95619,3382.8,3382.5,2.95639]
[1718393034299,0.03613333,3382.6,3382.5,2.95639]
[1718393034506,2.95606,3382.9,3382.6,2.9563]
[1718393036541,2.95606,3382.9,3382.5,2.95636]
[1718393038420,2.95606,3382.9,3382.4,2.95648]
[1718393038421,2.95606,3382.9,3382.6,2.95629]
[1718393041048,10.26589,3383.1,3382.7,2.95614]
[1718393041348,7.31,3383.1,3382.8,2.95611]
[1718393042834,7.31,3383.1,3382.9,2.95602]
[1718393043008,2.95581,3383.2,3382.9,2.95602]
[1718393043413,2.95571,3383.3,3382.9,2.95602]
[1718393043637,2.95562,3383.4,3382.9,2.95602]
[1718393043638,2.95562,3383.4,3383.0,2.95595]
[1718393043841,2.95553,3383.5,3383.1,2.95579]
[1718393044039,7.31,3383.6,3383.3,2.95568]
[1718393044286,7.31,3383.6,3383.1,5.35771]
[1718393044287,7.31,3383.6,3383.5,5.91102]
[1718393044616,7.31,3383.6,3383.5,8.86653]
[1718393044742,7.31,3383.6,3383.5,5.91102]
[1718393047373,7.31,3383.6,3383.5,6.797687]
[1718393047670,7.31,3383.6,3383.5,9.753197]
[1718393048070,7.3443994,3383.6,3383.5,9.753197]
[1718393048851,0.0343994,3383.6,3383.5,9.753197]
[1718393049053,0.0343994,3383.6,3383.5,13.65444214]
[1718393049254,7.31,3384.9,3384.4,2.95471]
[1718393049453,2.3955,3385.2,3384.8,2.95437]
[1718393049655,5.34954,3385.2,3384.7,2.95441]
[1718393049964,2.3955,3385.2,3384.8,2.95434]
[1718393050141,2.3955,3385.2,3385.0,2.95416]
[1718393050990,2.3955,3385.2,3384.6,2.95447]
[1718393051170,2.95417,3385.1,3384.7,2.95446]
[1718393052456,2.95423,3385.0,3384.7,2.95446]
[1718393053148,2.95423,3385.0,3384.6,2.95454]
[1718393053369,2.95423,3385.0,3384.7,2.95443]
[1718393053556,2.95413,3385.1,3384.7,2.95443]
[1718393054676,5.34955,3385.2,3384.8,2.95437]
[1718393055079,2.95413,3385.1,3384.7,2.95445]
[1718393055581,2.3035,3384.6,3383.6,2.3575]
[1718393055791,2.95495,3384.2,3383.5,2.95544]
[1718393055968,2.95495,3384.2,3383.8,2.95524]
[1718393056168,2.95502,3384.1,3383.7,2.95532]
[1718393056582,2.95491,3384.2,3383.8,2.95523]
[1718393056946,2.95491,3384.2,3383.7,2.95532]
[1718393056947,2.95491,3384.2,3383.7,2.95533]
[1718393057149,2.95501,3384.1,3383.7,2.95533]
[1718393057356,2.95501,3384.1,3383.8,2.95525]
[1718393058786,2.95492,3384.2,3383.9,2.95516]
[1718393059020,2.95492,3384.2,3383.8,2.95524]
[1718393059528,2.95501,3384.1,3383.8,2.95524]
[1718393060125,2.95472,3384.5,3383.9,2.95509]
[1718393060422,10.26448,3384.7,3383.8,2.95524]
[1718393060423,2.95497,3384.2,3383.8,2.95524]
[1718393060583,2.95501,3384.1,3383.8,2.95524]
[1718393061642,2.95508,3384.0,3383.2,2.3575]
[1718393061954,2.9556,3383.5,3383.0,2.95589]
[1718393062087,2.9556,3383.5,3382.7,2.95616]
[1718393062088,2.95586,3383.1,3382.7,2.95616]
[1718393062299,2.95553,3383.5,3382.9,2.95603]
[1718393062524,2.95553,3383.5,3383.2,2.95576]
[1718393062690,2.95527,3383.8,3382.5,5.33375]
[1718393062892,2.95588,3383.1,3382.8,2.95612]
[1718393063430,2.95527,3383.8,3382.1,2.95671]
[1718393063431,2.98875974,3383.0,3382.1,2.95671]
[1718393063587,2.98875974,3383.0,3382.1,3.5492617]
[1718393063990,0.03280974,3383.0,3382.4,2.95644]
[1718393064245,0.03280974,3383.0,3382.6,2.95625]
[1718393064246,2.98882974,3383.0,3382.6,2.95625]
[1718393064391,2.95587,3383.1,3382.6,2.95625]
[1718393064588,0.03331755,3382.9,3382.8,2.95613]
[1718393064837,0.03260754,3383.0,3382.8,2.95613]
[1718393064984,0.03257358,3382.9,3382.8,2.95613]
[1718393065292,2.95587,3383.1,3382.8,2.95613]
[1718393065487,0.03326356,3382.9,3382.8,2.95613]
[1718393065692,2.95587,3383.1,3382.8,2.95613]
[1718393065994,0.03323318,3382.9,3382.8,2.95613]
[1718393066212,2.95587,3383.1,3382.8,2.95613]
[1718393066426,7.31,3383.2,3382.4,2.95647]
[1718393066626,2.9563,3382.7,3382.3,2.95655]
[1718393066834,2.9564,3382.5,3382.1,2.95668]
[1718393067021,0.0331539,3382.4,3382.1,2.95668]
[1718393067213,0.0331539,3382.4,3382.0,2.95682]
[1718393067415,2.95668,3382.2,3381.8,3.548347]
[1718393067663,2.95668,3382.2,3381.8,2.95694]
[1718393067811,0.03230182,3382.1,3381.3,2.95743]
[1718393068015,2.95692,3381.9,3381.4,2.95734]
[1718393068313,0.03224834,3381.8,3381.7,2.95709]
[1718393068723,0.03224834,3381.8,3381.6,2.95711]
[1718393068724,10.26657,3382.3,3381.9,2.95685]
[1718393068948,10.26657,3382.3,3382.0,2.9568]
[1718393069265,2.143,3383.2,3382.0,2.9568]
[1718393069266,7.31,3382.8,3382.4,2.95646]
[1718393069554,7.31,3382.8,3382.6,2.9563]
[1718393069712,7.31,3382.8,3382.6,5.9126]
[1718393070109,7.31,3382.8,3382.6,2.9563]
[1718393070344,15.44629,3382.7,3382.3,2.95652]
[1718393070522,15.44629,3382.7,3382.4,2.95645]
[1718393071216,2.95656,3382.4,3382.0,2.95676]
[1718393071411,12.49,3382.7,3381.8,2.95699]
[1718393071412,2.95657,3382.3,3381.8,2.95699]
[1718393071748,2.95665,3382.2,3381.9,2.95691]
[1718393072514,2.95657,3382.3,3382.0,2.95682]
[1718393072709,2.95649,3382.4,3382.0,2.95682]
[1718393073919,2.95657,3382.3,3382.0,2.95682]
[1718393074621,2.9565,3382.4,3382.1,2.95672]
[1718393075331,5.36357,3382.7,3381.5,2.95725]
[1718393075332,2.95699,3381.9,3381.5,2.95725]
[1718393076356,2.95699,3381.9,3381.2,2.92032103]
[1718393076357,2.95709,3381.7,3381.2,2.92032103]
[1718393076551,2.95719,3381.6,3381.2,2.95746]
[1718393076729,0.03134388,3381.6,3381.4,2.95735]
[1718393076922,0.03134388,3381.6,3381.5,2.95726]
[1718393077121,2.95701,3381.8,3381.5,2.95726]
[1718393077639,0.03128754,3381.7,3381.5,2.95726]
[1718393078062,2.95701,3381.8,3381.5,2.95726]
[1718393078575,0.03139489,3381.7,3381.5,2.95726]
[1718393078771,2.95701,3381.8,3381.5,2.95726]
[1718393078965,0.03136091,3381.6,3381.5,2.95726]
[1718393079271,0.03126144,3381.6,3381.5,2.95726]
[1718393079471,2.95693,3381.9,3381.5,2.95726]
[1718393079642,0.0313294,3381.8,3381.6,2.95717]
[1718393080044,0.0313294,3381.8,3381.7,5.91418]
[1718393080439,10.26659,3382.3,3381.9,2.95689]
[1718393080666,2.95659,3382.3,3381.9,2.95689]
[1718393080977,2.95659,3382.3,3381.8,2.957]
[1718393080978,7.31,3382.7,3382.4,2.95644]
[1718393081140,7.31,3382.7,3382.5,2.95631]
[1718393081681,7.31,3383.2,3383.0,2.95589]
[1718393081886,2.95562,3383.4,3382.9,2.95602]
[1718393082177,2.95547,3383.6,3382.8,2.95611]
[1718393082178,2.95585,3383.2,3382.8,2.95611]
[1718393083445,2.95588,3383.1,3382.7,2.95621]
[1718393084144,2.95595,3383.0,3382.7,2.95621]
[1718393085481,2.95596,3383.0,3382.3,2.95655]
[1718393085676,2.95596,3383.0,3382.3,3.547866]
[1718393086279,2.95614,3382.8,3382.5,2.95638]
[1718393089369,2.95605,3382.9,3382.6,2.95629]
[1718393089666,7.31,3383.3,3382.8,2.95604]
[1718393089863,7.31,3383.3,3382.7,2.95615]
[1718393089864,2.95587,3383.1,3382.7,2.95615]
[1718393090271,2.9558,3383.2,3382.8,2.95612]
[1718393090480,2.9558,3383.2,3382.9,2.95603]
[1718393091562,2.9558,3383.2,3382.7,3.843098]
[1718393091563,2.9557,3383.3,3383.0,2.95592]
[1718393091783,2.95551,3383.6,3383.1,2.95579]
[1718393091997,2.95551,3383.6,3383.0,2.95592]
[1718393091998,2.95553,3383.5,3383.2,2.95576]
[1718393092148,2.95563,3383.4,3382.9,2.95603]
[1718393092492,2.95563,3383.4,3383.0,2.95593]
[1718393092692,2.95563,3383.4,3383.1,2.95586]
[1718393092982,2.95591,3383.1,3382.8,2.95604]
[1718393093378,0.03178673,3383.0,3382.9,2.95602]
[1718393093579,2.95578,3383.2,3382.9,2.95602]
[1718393093765,0.03179818,3383.0,3382.9,2.95602]
[1718393093947,2.95578,3383.2,3382.9,2.95602]
[1718393094153,0.03171037,3383.0,3382.9,2.95602]
[1718393094351,2.95578,3383.2,3382.9,2.95602]
[1718393094671,0.03176306,3383.0,3382.9,2.95602]
[1718393094875,2.95578,3383.2,3382.9,2.95602]
[1718393095072,0.03176306,3383.0,3382.9,2.95602]
[1718393095273,2.95578,3383.2,3382.9,2.95602]
[1718393095465,0.03176306,3383.0,3382.9,2.95602]
[1718393095666,2.9557,3383.3,3383.0,2.95594]
[1718393096484,7.31,3383.7,3383.0,3.842767]
[1718393096655,10.2654,3383.7,3383.3,2.95563]
[1718393097185,2.95544,3383.6,3383.3,2.95563]
[1718393100395,2.95544,3383.6,3383.1,2.95579]
[1718393100967,2.95544,3383.6,3383.2,2.95577]
[1718393101558,2.95553,3383.5,3383.2,2.95577]
[1718393102491,2.95577,3383.3,3382.9,2.95602]
[1718393102693,2.95577,3383.3,3382.8,2.9561]
[1718393102992,2.95587,3383.1,3382.8,2.9561]
[1718393103772,2.95592,3383.1,3382.7,2.95615]
[1718393105298,2.95604,3382.9,3382.4,2.2949]
[1718393105505,2.95604,3382.9,3382.6,2.9563]
[1718393106707,2.95597,3383.0,3382.7,2.95621]
[1718393107063,2.95568,3383.4,3383.1,2.95586]
[1718393107261,2.95543,3383.6,3383.2,2.95577]
[1718393107523,7.31,3383.7,3383.5,2.95551]
[1718393108076,0.03207086,3383.6,3383.5,2.95551]
[1718393109588,0.03207086,3383.6,3383.4,2.95557]
[1718393110469,0.03207086,3383.6,3383.5,2.95551]
[1718393111707,0.03207086,3383.6,3383.5,9.58036134]
[1718393113009,0.03207086,3383.6,3383.5,11.95136134]
[1718393115519,0.03207086,3383.6,3383.5,16.34031648]
[1718393115918,10.2643,3384.9,3384.5,2.95463]
[1718393116246,0.03233731,3384.8,3384.6,2.95449]
[1718393116396,0.03233731,3384.8,3384.5,2.95462]
[1718393118702,2.98672731,3384.8,3384.5,2.95462]
[1718393121337,0.03233731,3384.8,3384.7,5.90894]
[1718393121518,0.03233731,3384.8,3384.7,8.86341]
[1718393121713,2.95377,3385.5,3385.1,2.9541]
[1718393122116,0.03280967,3385.4,3385.1,2.9541]
[1718393122346,2.98674967,3385.4,3384.7,2.95447]
[1718393122648,2.95404,3385.2,3384.8,2.95431]
[1718393123034,0.03270205,3385.1,3384.8,2.95431]
[1718393123440,0.03270205,3385.1,3384.9,2.95428]
[1718393124244,0.03270205,3385.1,3384.8,2.95436]
[1718393125534,2.95445,3384.8,3384.3,5.43441]
[1718393125737,2.95445,3384.8,3384.5,2.95464]
[1718393125907,0.0326247,3384.7,3384.4,3.498161]
[1718393126102,2.95465,3384.5,3384.2,2.9549]
[1718393126307,2.95473,3384.4,3383.9,2.95512]
[1718393126541,2.95456,3384.6,3383.8,2.3406]
[1718393126542,2.95467,3384.5,3384.1,2.95493]
[1718393126716,0.03272034,3384.3,3384.1,2.95493]
[1718393126917,2.95467,3384.5,3384.1,2.95493]
[1718393127120,0.03270869,3384.2,3384.1,2.95493]
[1718393127318,7.31,3384.3,3384.1,3.779983]
[1718393127544,0.03270869,3384.2,3384.1,3.779983]
[1718393128134,0.03270869,3384.2,3384.1,6.734973]
[1718393128917,0.03270869,3384.2,3384.1,3.779983]
[1718393129605,0.03270869,3384.2,3384.1,6.734973]
[1718393130057,0.03270869,3384.2,3384.1,9.689963]
[1718393130634,0.03270869,3384.2,3384.1,14.07839814]
[1718393130820,0.03270869,3384.2,3384.1,16.53379814]
[1718393131427,10.2641,3385.2,3384.8,2.95436]
[1718393131622,2.9541,3385.2,3384.8,2.95436]
[1718393133154,2.9541,3385.2,3384.9,2.95428]
[1718393135415,2.9541,3385.2,3384.8,2.95436]
[1718393136666,2.9541,3385.2,3384.9,2.95429]
[1718393137998,0.03302085,3385.1,3384.9,2.95429]
[1718393138761,0.03302085,3385.1,3385.0,8.8626]
[1718393138960,7.31,3385.6,3385.4,2.95384]
[1718393139795,7.31,3385.6,3385.0,2.9542]
[1718393139796,10.26369,3385.6,3385.1,2.95411]
[1718393140127,10.26369,3385.6,3385.2,2.95396]
[1718393140286,2.95379,3385.5,3385.1,2.9541]
[1718393140811,2.95379,3385.5,3385.2,2.95403]
[1718393147484,2.95383,3385.5,3385.1,2.95406]
[1718393147805,2.95383,3385.5,3385.2,2.95402]
[1718393148998,2.95383,3385.5,3385.1,2.95409]
[1718393149203,2.95387,3385.4,3385.1,3.840342]
[1718393150027,2.95422,3385.0,3384.7,2.95446]
[1718393150372,2.95414,3385.1,3384.7,2.95446]
[1718393151113,2.95421,3385.0,3384.7,2.95446]
[1718393152722,2.95414,3385.1,3384.8,2.95438]
[1718393153124,0.03303602,3385.0,3384.8,2.95438]
[1718393153313,0.03303602,3385.0,3384.9,3.545174]
[1718393153720,2.95404,3385.2,3384.9,3.545174]
[1718393154029,0.1161931,3385.8,3385.2,2.95402]
[1718393154351,0.1161931,3385.8,3385.7,11.20187]
[1718393154700,0.1161931,3385.8,3385.7,12.63531514]
[1718393154895,0.1161931,3385.8,3385.7,14.40853165]
[1718393156196,0.1161931,3385.8,3385.7,17.36212165]
[1718393156494,0.1161931,3385.8,3385.7,17.91212165]
[1718393157735,0.1161931,3385.8,3385.7,17.36212165]
[1718393160024,0.1161931,3385.8,3385.7,17.91212165]
[1718393163555,0.1161931,3385.8,3385.7,20.05512165]
[1718393164813,0.1161931,3385.8,3385.7,17.36212165]
[1718393165551,0.1161931,3385.8,3385.7,10.63398651]
[1718393166050,0.1161931,3385.8,3385.7,7.68039651]
[1718393166256,0.1161931,3385.8,3385.7,2.95359]
[1718393166257,0.14624974,3385.8,3385.7,2.95359]
[1718393166409,0.14624974,3385.8,3385.7,5.90718]
[1718393166611,0.14624974,3385.8,3385.7,2.95359]
[1718393168969,0.14624974,3385.8,3385.6,2.95368]
[1718393169250,0.14624974,3385.8,3385.7,2.95359]
[1718393169613,0.14624974,3385.8,3385.7,8.86077]
[1718393169822,0.1161931,3385.8,3385.7,8.86077]
[1718393175254,0.1161931,3385.8,3385.7,15.74200514]
[1718393175636,0.1161931,3385.8,3385.7,50.74200514]
[1718393176038,0.1161931,3385.8,3385.7,15.74200514]
[1718393176231,0.1161931,3385.8,3385.7,17.82587665]
[1718393184248,0.1161931,3385.8,3385.7,18.37587665]
[1718393187382,0.1161931,3385.8,3385.7,15.88167665]
[1718393187676,0.1161931,3385.8,3385.7,17.81047665]
[1718393188982,0.1161931,3385.8,3385.7,18.36047665]
[1718393190277,0.1161931,3385.8,3385.7,15.33167665]
[1718393190594,0.1161931,3385.8,3385.7,12.37808665]
[1718393190970,0.1161931,3385.8,3385.7,13.26808665]
[1718393191168,0.1161931,3385.8,3385.7,10.94464151]
[1718393191382,0.1161931,3385.8,3385.7,9.75077]
[1718393191694,0.14211059,3385.8,3385.7,9.75077]
[1718393191897,0.1161931,3385.8,3385.7,9.75077]
[1718393193678,0.1161931,3385.8,3385.7,2.95359]
[1718393194364,0.1161931,3385.8,3385.7,5.90718]
[1718393195169,0.14289411,3385.8,3385.7,5.90718]
[1718393195576,0.1161931,3385.8,3385.7,5.90718]
[1718393195764,0.14289411,3385.8,3385.7,5.90718]
[1718393196516,0.14289411,3385.8,3385.7,2.95359]
[1718393197902,0.14289411,3385.8,3385.6,2.95365]
[1718393198097,5.41495,3385.7,3385.4,2.95385]
[1718393199588,2.4613,3385.7,3385.5,2.95377]
[1718393201928,0.02605086,3385.6,3385.5,2.95377]
[1718393202820,2.4613,3385.7,3385.5,2.95377]
[1718393205300,2.4613,3385.7,3385.4,2.95383]
[1718393206240,3.0697231,3385.8,3385.5,2.95371]
[1718393207228,3.0697231,3385.8,3385.6,2.95368]
[1718393208133,0.1161931,3385.8,3385.6,2.95368]
[1718393208627,0.1161931,3385.8,3385.7,5.96625063]
[1718393208829,0.1161931,3385.8,3385.7,10.94991083]
[1718393210141,0.1161931,3385.8,3385.7,10.8908402]
[1718393210345,0.1161931,3385.8,3385.7,10.29421514]
[1718393214529,0.1161931,3385.8,3385.7,5.90718]
[1718393215053,0.1161931,3385.8,3385.7,2.95359]
[1718393215212,5.34908,3386.3,3385.7,2.95359]
[1718393215412,2.95318,3386.2,3385.8,0.05906378]
[1718393215835,2.95318,3386.2,3385.9,2.95341]
[1718393216531,2.95318,3386.2,3386.0,2.95333]
[1718393217259,2.95318,3386.2,3385.9,2.9534]
[1718393217950,2.95325,3386.1,3385.9,2.9534]
[1718393218154,2.95334,3386.0,3385.7,2.95353]
[1718393219256,2.95334,3386.0,3385.8,2.95351]
[1718393220358,2.95327,3386.1,3385.8,2.95351]
[1718393223284,2.95337,3386.0,3385.7,2.95359]
[1718393223566,2.95337,3386.0,3385.5,2.95375]
[1718393224128,2.95334,3386.0,3385.6,2.95361]
[1718393224466,2.95334,3386.0,3385.5,2.95375]
[1718393224680,2.95334,3386.0,3385.7,2.95359]
[1718393226463,2.95342,3385.9,3385.7,2.95359]
[1718393226965,2.95351,3385.8,3385.5,2.95375]
[1718393227185,2.2915,3385.7,3385.5,2.95375]
[1718393230504,2.2915,3385.7,3385.5,2.80575]
[1718393231384,2.2915,3385.7,3385.5,2.77575]
[1718393233198,6.1351,3385.7,3385.4,2.95379]
[1718393233967,2.46,3386.1,3385.9,2.9534]
[1718393234175,2.95325,3386.1,3385.8,2.95349]
[1718393235197,2.95335,3386.0,3385.8,2.95349]
[1718393235805,2.95349,3385.9,3385.6,2.95366]
[1718393236889,2.95357,3385.8,3385.4,2.95377]
[1718393237287,2.95332,3386.1,3385.8,2.95345]
[1718393238916,2.95316,3386.2,3385.9,2.95341]
[1718393239226,2.95316,3386.2,3386.0,2.95331]
[1718393241201,2.9531,3386.3,3386.0,2.95331]
[1718393243690,2.9531,3386.3,3386.1,2.95324]
[1718393245707,2.95309,3386.3,3386.0,2.95332]
[1718393246023,0.89,3386.1,3385.8,2.95349]
[1718393246232,2.95326,3386.1,3385.8,2.95349]
[1718393246390,3.84326,3386.1,3385.8,2.95349]
[1718393247324,2.95326,3386.1,3385.8,2.95349]
[1718393247515,2.95326,3386.1,3385.9,2.95342]
[1718393249430,2.95317,3386.2,3385.9,2.95342]
[1718393249819,5.39904,3386.7,3386.3,2.95307]
[1718393250021,2.95287,3386.6,3386.3,2.95307]
[1718393250193,2.98271972,3386.6,3386.3,2.95307]
[1718393250400,2.98265972,3386.6,3386.1,2.95322]
[1718393250603,2.95331,3386.1,3385.5,2.95372]
[1718393250838,2.95331,3386.1,3385.8,2.95343]
[1718393252615,2.95331,3386.1,3385.9,2.95341]
[1718393254342,2.95331,3386.1,3385.7,2.95357]
[1718393254343,2.95331,3386.1,3385.8,2.95351]
[1718393255049,2.95331,3386.1,3385.9,2.95341]
[1718393255217,7.31,3386.4,3386.3,2.95307]
[1718393255408,2.95284,3386.6,3386.3,2.95298]
[1718393255808,0.02976138,3386.5,3386.3,2.95298]
[1718393256051,5.34547,3386.8,3386.4,2.95297]
[1718393256218,5.34547,3386.8,3386.5,2.95289]
[1718393256546,2.95273,3386.7,3386.5,2.95289]
[1718393256845,0.02976519,3386.6,3386.4,2.95296]
[1718393257046,2.95273,3386.7,3386.4,2.95296]
[1718393262655,0.02773079,3386.6,3386.4,2.95296]
[1718393263152,2.98055079,3386.6,3386.4,2.95296]
[1718393263955,2.98055079,3386.6,3386.2,2.95314]
[1718393264252,3.84291,3386.5,3386.2,2.95314]
[1718393264462,2.98055079,3386.6,3385.8,2.95348]
[1718393264463,2.95316,3386.2,3385.8,2.95348]
[1718393264614,2.95331,3386.1,3385.8,2.95348]
[1718393265443,2.95339,3386.0,3385.6,2.95368]